[Event "*** Titled Tuesday 3|2 Blitz"]
[Site "Chess.com"]
[Date "2016.10.04"]
[Round "9"]
[White "MattyDPerrine"]
[Black "GulamaliRises"]
[Result "0-1"]
[WhiteElo "2246"]
[BlackElo "2474"]
[TimeControl "180+2"]
[EndTime "19:05:24 PDT"]
[Termination "GulamaliRises won by resignation"]

1. d4 {[%clk 0:03:01.9]} 1... e6 {[%clk 0:02:56.9]} 2. Nf3 {[%clk 0:03:01.1]}
2... c5 {[%clk 0:02:57.5]} 3. c4 {[%clk 0:02:56.8]} 3... cxd4 {[%clk 0:02:58.2]}
4. Nxd4 {[%clk 0:02:58.2]} 4... a6 {[%clk 0:02:59.3]} 5. g3 {[%clk 0:02:58.3]}
5... Nc6 {[%clk 0:02:38.2]} 6. Bg2 {[%clk 0:02:46]} 6... Bb4+ {[%clk 0:02:38.5]}
7. Nc3 {[%clk 0:02:46.7]} 7... Nf6 {[%clk 0:02:35.4]} 8. O-O {[%clk 0:02:46.7]}
8... O-O {[%clk 0:02:33.6]} 9. Ne4 {[%clk 0:02:11.8]} 9... Be7 {[%clk
0:02:00.9]} 10. Nxc6 {[%clk 0:02:01.5]} 10... dxc6 {[%clk 0:01:46.3]} 11. Bf4
{[%clk 0:01:53.9]} 11... Qb6 {[%clk 0:01:07.5]} 12. Qc2 {[%clk 0:01:47.9]} 12...
c5 {[%clk 0:00:24.1]} 13. Nc3 {[%clk 0:01:38.9]} 13... Bd7 {[%clk 0:00:21.7]}
14. e4 {[%clk 0:01:29.2]} 14... Bc6 {[%clk 0:00:21.3]} 15. e5 {[%clk 0:01:18.9]}
15... Nd7 {[%clk 0:00:22.2]} 16. Rfd1 {[%clk 0:01:01.8]} 16... g5 {[%clk
0:00:18.3]} 17. Bxc6 {[%clk 0:00:59.4]} 17... Qxc6 {[%clk 0:00:19.2]} 18. Qe4
{[%clk 0:01:00.3]} 18... Rfd8 {[%clk 0:00:15.5]} 19. Qxc6 {[%clk 0:00:22.6]}
19... bxc6 {[%clk 0:00:16.3]} 20. Be3 {[%clk 0:00:22.7]} 20... Nxe5 {[%clk
0:00:17.7]} 21. b3 {[%clk 0:00:23.4]} 21... Nd3 {[%clk 0:00:18.5]} 22. Rd2
{[%clk 0:00:21.2]} 22... Bf6 {[%clk 0:00:17.9]} 23. Rad1 {[%clk 0:00:21.9]}
23... Bxc3 {[%clk 0:00:12]} 24. Rxd3 {[%clk 0:00:23.3]} 24... Bd4 {[%clk
0:00:09.8]} 25. Bxg5 {[%clk 0:00:22.5]} 25... f6 {[%clk 0:00:09.4]} 26. Be3
{[%clk 0:00:18.7]} 26... e5 {[%clk 0:00:10.8]} 27. Kg2 {[%clk 0:00:17.5]} 27...
a5 {[%clk 0:00:11.5]} 28. a4 {[%clk 0:00:14.7]} 28... Kf7 {[%clk 0:00:12.6]} 29.
g4 {[%clk 0:00:15.9]} 29... h5 {[%clk 0:00:12.9]} 30. h3 {[%clk 0:00:16.5]}
30... Ke6 {[%clk 0:00:14.5]} 31. Kf3 {[%clk 0:00:16.6]} 31... f5 {[%clk
0:00:15.9]} 32. gxf5+ {[%clk 0:00:14.6]} 32... Kxf5 {[%clk 0:00:17.8]} 33. Ke2
{[%clk 0:00:14.2]} 33... Rab8 {[%clk 0:00:16.4]} 34. Bxd4 {[%clk 0:00:10.7]}
34... cxd4 {[%clk 0:00:17.4]} 35. Rf3+ {[%clk 0:00:10.6]} 35... Ke6 {[%clk
0:00:17.4]} 36. Rg1 {[%clk 0:00:10.9]} 36... Rg8 {[%clk 0:00:17.8]} 37. Rfg3
{[%clk 0:00:09]} 37... Rxg3 {[%clk 0:00:17.6]} 38. Rxg3 {[%clk 0:00:10.9]} 38...
e4 {[%clk 0:00:18.6]} 39. Rg6+ {[%clk 0:00:11.2]} 39... Kf5 {[%clk 0:00:20.1]}
40. Rxc6 {[%clk 0:00:11.6]} 40... Rxb3 {[%clk 0:00:21.3]} 41. Rd6 {[%clk
0:00:10.6]} 41... Rb2+ {[%clk 0:00:21.5]} 42. Ke1 {[%clk 0:00:11.3]} 42... d3
{[%clk 0:00:22.8]} 43. Rd5+ {[%clk 0:00:10.5]} 43... Kf4 {[%clk 0:00:24.1]} 44.
Rxa5 {[%clk 0:00:09.8]} 44... Re2+ {[%clk 0:00:25.2]} 45. Kf1 {[%clk 0:00:10]}
45... Rc2 {[%clk 0:00:27.1]} 46. Rxh5 {[%clk 0:00:06.4]} 46... Rc1+ {[%clk
0:00:27.2]} 47. Kg2 {[%clk 0:00:07.6]} 47... d2 {[%clk 0:00:28.7]} 48. Rd5
{[%clk 0:00:08.3]} 48... d1=Q {[%clk 0:00:29.9]} 49. Rxd1 {[%clk 0:00:09.1]}
49... Rxd1 {[%clk 0:00:31.8]} 0-1

[Event "*** Titled Tuesday 3|2 Blitz"]
[Site "Chess.com"]
[Date "2016.10.04"]
[Round "9"]
[White "hardingstoptry"]
[Black "3ptdka"]
[Result "1-0"]
[WhiteElo "2475"]
[BlackElo "2095"]
[TimeControl "180+2"]
[EndTime "19:05:59 PDT"]
[Termination "hardingstoptry won by resignation"]

1. Nf3 {[%clk 0:03:02]} 1... Nf6 {[%clk 0:02:55.4]} 2. g3 {[%clk 0:03:03.9]}
2... b6 {[%clk 0:02:55.3]} 3. Bg2 {[%clk 0:03:05.8]} 3... Bb7 {[%clk 0:02:56.2]}
4. b3 {[%clk 0:03:04.2]} 4... e6 {[%clk 0:02:57]} 5. Bb2 {[%clk 0:03:02.2]} 5...
Be7 {[%clk 0:02:58.3]} 6. d3 {[%clk 0:03:00.6]} 6... O-O {[%clk 0:02:59.6]} 7.
O-O {[%clk 0:02:59.2]} 7... d6 {[%clk 0:03:00.1]} 8. Nbd2 {[%clk 0:02:56.2]}
8... Nbd7 {[%clk 0:03:01.2]} 9. c4 {[%clk 0:02:57.4]} 9... a5 {[%clk 0:03:00.6]}
10. Rc1 {[%clk 0:02:59.3]} 10... a4 {[%clk 0:03:01.7]} 11. b4 {[%clk 0:02:57]}
11... a3 {[%clk 0:03:02.6]} 12. Bc3 {[%clk 0:02:54.4]} 12... e5 {[%clk
0:02:56.1]} 13. Re1 {[%clk 0:02:47.6]} 13... Qb8 {[%clk 0:02:55.5]} 14. e3
{[%clk 0:02:44.1]} 14... Re8 {[%clk 0:02:56.4]} 15. Qc2 {[%clk 0:02:43.2]} 15...
Bf8 {[%clk 0:02:55.2]} 16. d4 {[%clk 0:02:41.3]} 16... Ra7 {[%clk 0:02:53.1]}
17. d5 {[%clk 0:02:40.6]} 17... Bc8 {[%clk 0:02:48.1]} 18. e4 {[%clk 0:02:41.9]}
18... g6 {[%clk 0:02:47.9]} 19. h4 {[%clk 0:02:37.1]} 19... h5 {[%clk
0:02:48.5]} 20. Nf1 {[%clk 0:02:37.7]} 20... Bh6 {[%clk 0:02:46.6]} 21. Ne3
{[%clk 0:02:37]} 21... Ng4 {[%clk 0:02:43.8]} 22. Bd2 {[%clk 0:02:35.7]} 22...
Nxe3 {[%clk 0:02:43.6]} 23. Bxe3 {[%clk 0:02:36.8]} 23... Bxe3 {[%clk
0:02:44.6]} 24. Rxe3 {[%clk 0:02:37.6]} 24... Nf6 {[%clk 0:02:42.6]} 25. Ng5
{[%clk 0:02:38.6]} 25... Ng4 {[%clk 0:02:39]} 26. Rc3 {[%clk 0:02:33.5]} 26...
Bd7 {[%clk 0:02:34.3]} 27. f3 {[%clk 0:02:28.4]} 27... Nf6 {[%clk 0:02:32.2]}
28. Qd3 {[%clk 0:02:29.5]} 28... Ra4 {[%clk 0:02:29.9]} 29. Qc2 {[%clk
0:02:25.7]} 29... Rxb4 {[%clk 0:02:26.4]} 30. Rxa3 {[%clk 0:02:24.6]} 30... Qb7
{[%clk 0:02:13.1]} 31. Rb3 {[%clk 0:02:16.2]} 31... Ra4 {[%clk 0:02:10.6]} 32.
c5 {[%clk 0:02:02.2]} 32... dxc5 {[%clk 0:02:11]} 33. Qxc5 {[%clk 0:02:00.6]}
33... Ra7 {[%clk 0:01:59.7]} 34. Qc3 {[%clk 0:01:53]} 34... Qa6 {[%clk
0:01:56.2]} 35. a3 {[%clk 0:01:51.9]} 35... Ba4 {[%clk 0:01:49.2]} 36. Rb4
{[%clk 0:01:49.9]} 36... Nd7 {[%clk 0:01:47.6]} 37. Rc4 {[%clk 0:01:46.7]} 37...
Nc5 {[%clk 0:01:44.7]} 38. f4 {[%clk 0:01:48]} 38... Bb5 {[%clk 0:01:35.6]} 39.
fxe5 {[%clk 0:01:39.4]} 39... Bxc4 {[%clk 0:01:33.4]} 40. e6 {[%clk 0:01:40.7]}
40... Nxe6 {[%clk 0:01:14.9]} 41. Nxe6 {[%clk 0:01:39.8]} 41... Rxe6 {[%clk
0:01:13.6]} 42. dxe6 {[%clk 0:01:39.4]} 42... Bxe6 {[%clk 0:01:12.9]} 43. Rd1
{[%clk 0:01:40.5]} 43... Ra8 {[%clk 0:01:04.1]} 44. Bf1 {[%clk 0:01:40.6]} 44...
Qxa3 {[%clk 0:01:01.6]} 45. Rd8+ {[%clk 0:01:38.4]} 45... Rxd8 {[%clk
0:00:58.1]} 46. Qxa3 {[%clk 0:01:39.3]} 46... Rd4 {[%clk 0:00:54]} 47. Qa8+
{[%clk 0:01:35.1]} 47... Kg7 {[%clk 0:00:53.5]} 48. Qb7 {[%clk 0:01:36.2]} 48...
c5 {[%clk 0:00:36.9]} 49. Qxb6 {[%clk 0:01:31.6]} 49... Rxe4 {[%clk 0:00:37.3]}
50. Qxc5 {[%clk 0:01:30.9]} 50... Rg4 {[%clk 0:00:38.4]} 51. Kf2 {[%clk
0:01:28.8]} 51... Kh7 {[%clk 0:00:39]} 52. Be2 {[%clk 0:01:25.2]} 52... Ra4
{[%clk 0:00:38.2]} 53. Bxh5 {[%clk 0:01:21]} 53... Ra2+ {[%clk 0:00:34.3]} 54.
Kf3 {[%clk 0:01:20.2]} 54... gxh5 {[%clk 0:00:32.4]} 55. Qxh5+ {[%clk
0:01:22.1]} 55... Kg7 {[%clk 0:00:33.2]} 56. Qe5+ {[%clk 0:01:17.9]} 56... Kh7
{[%clk 0:00:32.4]} 57. Qh5+ {[%clk 0:01:05.4]} 57... Kg7 {[%clk 0:00:32.3]} 58.
Qe5+ {[%clk 0:01:04.6]} 58... Kh7 {[%clk 0:00:33]} 59. Qd4 {[%clk 0:01:02.6]}
59... Ra3+ {[%clk 0:00:33]} 60. Kf4 {[%clk 0:01:00]} 60... Ra5 {[%clk
0:00:32.7]} 61. g4 {[%clk 0:00:59]} 61... Rd5 {[%clk 0:00:32]} 62. Qc3 {[%clk
0:00:59.4]} 62... Rb5 {[%clk 0:00:21.8]} 63. Qd3+ {[%clk 0:00:56.9]} 1-0

[Event "*** Titled Tuesday 3|2 Blitz"]
[Site "Chess.com"]
[Date "2016.10.04"]
[Round "9"]
[White "Paralinch"]
[Black "daro94"]
[Result "0-1"]
[WhiteElo "2613"]
[BlackElo "2696"]
[TimeControl "180+2"]
[EndTime "19:06:28 PDT"]
[Termination "daro94 won by resignation"]

1. e4 {[%clk 0:03:01.9]} 1... e5 {[%clk 0:02:59.1]} 2. Nf3 {[%clk 0:03:02.8]}
2... Nc6 {[%clk 0:03:00.6]} 3. Nc3 {[%clk 0:03:04]} 3... Nf6 {[%clk 0:03:01.1]}
4. a3 {[%clk 0:03:05.4]} 4... d5 {[%clk 0:02:52.3]} 5. Bb5 {[%clk 0:03:03.5]}
5... d4 {[%clk 0:02:26.7]} 6. Ne2 {[%clk 0:03:04]} 6... Bd6 {[%clk 0:02:25.8]}
7. Ng3 {[%clk 0:02:56.7]} 7... O-O {[%clk 0:02:24.7]} 8. d3 {[%clk 0:02:54]}
8... Na5 {[%clk 0:02:01.4]} 9. Ba4 {[%clk 0:02:33.3]} 9... a6 {[%clk 0:02:01.4]}
10. c4 {[%clk 0:02:33.2]} 10... c5 {[%clk 0:01:25.1]} 11. O-O {[%clk 0:02:21.9]}
11... Rb8 {[%clk 0:01:24.9]} 12. Bc2 {[%clk 0:02:14.1]} 12... b5 {[%clk
0:01:25.1]} 13. b3 {[%clk 0:02:14.5]} 13... Nc6 {[%clk 0:01:22.4]} 14. Bg5
{[%clk 0:02:06.5]} 14... Be7 {[%clk 0:01:23.5]} 15. h3 {[%clk 0:01:52.5]} 15...
Ne8 {[%clk 0:01:23.9]} 16. Bd2 {[%clk 0:01:53.1]} 16... Nd6 {[%clk 0:01:15.8]}
17. Rb1 {[%clk 0:01:43.8]} 17... Bd7 {[%clk 0:01:10.6]} 18. Qe2 {[%clk 0:01:43]}
18... Qc7 {[%clk 0:00:51.8]} 19. Rfc1 {[%clk 0:01:43.2]} 19... bxc4 {[%clk
0:00:48.4]} 20. dxc4 {[%clk 0:01:39.2]} 20... a5 {[%clk 0:00:48.8]} 21. Ne1
{[%clk 0:01:38.5]} 21... a4 {[%clk 0:00:40.7]} 22. b4 {[%clk 0:01:36.8]} 22...
Be6 {[%clk 0:00:38.4]} 23. Bxa4 {[%clk 0:01:33.2]} 23... Ra8 {[%clk 0:00:29.2]}
24. Bxc6 {[%clk 0:01:34.1]} 24... Qxc6 {[%clk 0:00:31]} 25. b5 {[%clk
0:01:35.4]} 25... Qc7 {[%clk 0:00:28.2]} 26. Nf5 {[%clk 0:01:14.3]} 26... Nxf5
{[%clk 0:00:23.8]} 27. exf5 {[%clk 0:01:15.4]} 27... Bxf5 {[%clk 0:00:25.4]} 28.
Ra1 {[%clk 0:01:15.8]} 28... Ra4 {[%clk 0:00:20.9]} 29. Nd3 {[%clk 0:01:13.1]}
29... Bd6 {[%clk 0:00:11.8]} 30. Nb2 {[%clk 0:01:12.7]} 30... Raa8 {[%clk
0:00:13]} 31. a4 {[%clk 0:01:14.2]} 31... e4 {[%clk 0:00:14.3]} 32. a5 {[%clk
0:01:15.6]} 32... Rfe8 {[%clk 0:00:14.7]} 33. Be1 {[%clk 0:01:10.5]} 33... e3
{[%clk 0:00:15.4]} 34. f3 {[%clk 0:01:11.6]} 34... Bh2+ {[%clk 0:00:15.3]} 35.
Kh1 {[%clk 0:01:06.4]} 35... Bf4 {[%clk 0:00:14.6]} 36. Rd1 {[%clk 0:00:59.7]}
36... Re6 {[%clk 0:00:07.1]} 37. Nd3 {[%clk 0:01:00.7]} 37... Bd6 {[%clk
0:00:07.4]} 38. g4 {[%clk 0:00:54.4]} 38... Bg6 {[%clk 0:00:08.1]} 39. a6 {[%clk
0:00:53.4]} 39... f5 {[%clk 0:00:08.7]} 40. Rab1 {[%clk 0:00:46.7]} 40... Qb6
{[%clk 0:00:09.1]} 41. Ra1 {[%clk 0:00:35.9]} 41... fxg4 {[%clk 0:00:09.5]} 42.
hxg4 {[%clk 0:00:36.1]} 42... Rf6 {[%clk 0:00:09.6]} 43. Qg2 {[%clk 0:00:34.7]}
43... Raf8 {[%clk 0:00:07.8]} 44. a7 {[%clk 0:00:34.5]} 44... Qb7 {[%clk
0:00:07.7]} 45. Bg3 {[%clk 0:00:21.2]} 45... Bxg3 {[%clk 0:00:07]} 46. Nxc5
{[%clk 0:00:22.7]} 46... Qa8 {[%clk 0:00:07]} 47. b6 {[%clk 0:00:17.2]} 47...
Rxb6 {[%clk 0:00:06.4]} 48. Qxg3 {[%clk 0:00:17.4]} 48... Rxf3 {[%clk
0:00:07.8]} 49. Qg2 {[%clk 0:00:18.9]} 49... Rb2 {[%clk 0:00:05]} 50. Nb7 {[%clk
0:00:04.6]} 50... Rxg2 {[%clk 0:00:05.2]} 51. Kxg2 {[%clk 0:00:06.5]} 51... Rf2+
{[%clk 0:00:06.4]} 52. Kg3 {[%clk 0:00:07.8]} 52... Be4 {[%clk 0:00:06.7]} 53.
Rdb1 {[%clk 0:00:08.7]} 53... Rf3+ {[%clk 0:00:06.1]} 54. Kh4 {[%clk 0:00:09.6]}
54... Bxb7 {[%clk 0:00:06.2]} 55. Rxb7 {[%clk 0:00:10.3]} 55... Qxb7 {[%clk
0:00:04.7]} 56. a8=Q+ {[%clk 0:00:11.8]} 56... Qxa8 {[%clk 0:00:06.2]} 57. Rxa8+
{[%clk 0:00:13.3]} 57... Rf8 {[%clk 0:00:08.1]} 58. Ra1 {[%clk 0:00:14.1]} 58...
e2 {[%clk 0:00:08.5]} 59. Kg3 {[%clk 0:00:15.6]} 59... d3 {[%clk 0:00:09.8]} 60.
Re1 {[%clk 0:00:16.9]} 60... d2 {[%clk 0:00:11.1]} 61. Rxe2 {[%clk 0:00:18]}
61... d1=Q {[%clk 0:00:12.3]} 0-1

[Event "*** Titled Tuesday 3|2 Blitz"]
[Site "Chess.com"]
[Date "2016.10.04"]
[Round "9"]
[White "NTBT_DHS"]
[Black "michaelq2d5"]
[Result "1/2-1/2"]
[WhiteElo "2465"]
[BlackElo "2521"]
[TimeControl "180+2"]
[EndTime "19:07:41 PDT"]
[Termination "Game drawn by repetition"]

1. d4 {[%clk 0:03:01.9]} 1... Nf6 {[%clk 0:03:00.5]} 2. c4 {[%clk 0:03:02.8]}
2... e6 {[%clk 0:03:01.9]} 3. Nc3 {[%clk 0:03:03.6]} 3... Bb4 {[%clk 0:03:02.9]}
4. e3 {[%clk 0:03:05.1]} 4... O-O {[%clk 0:03:03.5]} 5. Ne2 {[%clk 0:03:06.4]}
5... d5 {[%clk 0:03:04.5]} 6. a3 {[%clk 0:03:06.5]} 6... Be7 {[%clk 0:03:05.6]}
7. cxd5 {[%clk 0:03:02.9]} 7... exd5 {[%clk 0:03:07.5]} 8. Nf4 {[%clk
0:03:03.7]} 8... c6 {[%clk 0:03:08.9]} 9. Bd3 {[%clk 0:03:04.6]} 9... Nbd7
{[%clk 0:03:10]} 10. O-O {[%clk 0:03:05.8]} 10... Re8 {[%clk 0:03:10.9]} 11. b4
{[%clk 0:03:06.6]} 11... a6 {[%clk 0:03:10.6]} 12. h3 {[%clk 0:03:02.2]} 12...
Nf8 {[%clk 0:03:10.1]} 13. Bd2 {[%clk 0:03:01.2]} 13... Bd6 {[%clk 0:03:10.7]}
14. Nce2 {[%clk 0:03:01.9]} 14... Ne4 {[%clk 0:03:10.7]} 15. Be1 {[%clk
0:03:03.2]} 15... Ng6 {[%clk 0:03:10.7]} 16. f3 {[%clk 0:03:04]} 16... Nf6
{[%clk 0:03:09.1]} 17. Bf2 {[%clk 0:03:02.4]} 17... Qc7 {[%clk 0:03:08.3]} 18.
Nxg6 {[%clk 0:03:00.4]} 18... hxg6 {[%clk 0:03:10.2]} 19. f4 {[%clk 0:03:01.5]}
19... Ne4 {[%clk 0:03:01.6]} 20. Be1 {[%clk 0:03:01.8]} 20... g5 {[%clk
0:02:49.8]} 21. a4 {[%clk 0:03:01.8]} 21... g4 {[%clk 0:02:47.8]} 22. Bxe4
{[%clk 0:03:00.5]} 22... Rxe4 {[%clk 0:02:46.7]} 23. Qd3 {[%clk 0:02:30.8]}
23... gxh3 {[%clk 0:02:39]} 24. Ng3 {[%clk 0:02:32]} 24... Re7 {[%clk
0:02:38.3]} 25. Ra2 {[%clk 0:02:32.7]} 25... Bd7 {[%clk 0:02:24.8]} 26. Kh2
{[%clk 0:02:33.6]} 26... Rae8 {[%clk 0:02:24.7]} 27. Bf2 {[%clk 0:02:20.8]}
27... Bxb4 {[%clk 0:02:16.8]} 28. gxh3 {[%clk 0:02:21.5]} 28... Qd6 {[%clk
0:02:04.6]} 29. Bg1 {[%clk 0:02:19.9]} 29... Qh6 {[%clk 0:01:53.3]} 30. Nf5
{[%clk 0:02:16.8]} 30... Bxf5 {[%clk 0:01:22.5]} 31. Qxf5 {[%clk 0:02:16.7]}
31... g6 {[%clk 0:01:19.5]} 32. Rg2 {[%clk 0:02:16.9]} 32... Kf8 {[%clk
0:01:12.7]} 33. Qb1 {[%clk 0:02:16.3]} 33... a5 {[%clk 0:01:13.4]} 34. Rf3
{[%clk 0:02:17.2]} 34... Re4 {[%clk 0:01:10.9]} 35. Bf2 {[%clk 0:02:13.6]} 35...
Qh5 {[%clk 0:01:08.6]} 36. Rg4 {[%clk 0:02:14.2]} 36... R8e7 {[%clk 0:00:59]}
37. Qh1 {[%clk 0:02:11.6]} 37... Kg7 {[%clk 0:00:55.7]} 38. Qg2 {[%clk
0:02:10.3]} 38... Bd2 {[%clk 0:00:40.6]} 39. Rg5 {[%clk 0:01:51.4]} 39... Qh6
{[%clk 0:00:30.5]} 40. f5 {[%clk 0:01:52.9]} 40... Re8 {[%clk 0:00:17.6]} 41.
fxg6 {[%clk 0:01:30.2]} 41... fxg6 {[%clk 0:00:18.7]} 42. Rxg6+ {[%clk
0:01:13.8]} 42... Qxg6 {[%clk 0:00:19.7]} 43. Rg3 {[%clk 0:01:15.4]} 43... R8e6
{[%clk 0:00:20.5]} 44. Rxg6+ {[%clk 0:01:15.9]} 44... Rxg6 {[%clk 0:00:21.8]}
45. Qf3 {[%clk 0:01:17]} 45... Rf6 {[%clk 0:00:18]} 46. Qg3+ {[%clk 0:01:17.6]}
46... Kh6 {[%clk 0:00:13.3]} 47. Bg1 {[%clk 0:01:13]} 47... Rg6 {[%clk
0:00:12.7]} 48. Qb8 {[%clk 0:01:07]} 48... Bxe3 {[%clk 0:00:13.1]} 49. Qh8+
{[%clk 0:01:06.3]} 49... Kg5 {[%clk 0:00:13.6]} 50. Qd8+ {[%clk 0:01:03.3]}
50... Kh6 {[%clk 0:00:14.7]} 51. Qf8+ {[%clk 0:01:01.1]} 51... Kh7 {[%clk
0:00:14.3]} 52. Qf7+ {[%clk 0:01:01.9]} 52... Rg7 {[%clk 0:00:15.5]} 53. Qf5+
{[%clk 0:00:56.3]} 53... Kg8 {[%clk 0:00:15.5]} 54. Qc8+ {[%clk 0:00:56]} 54...
Kh7 {[%clk 0:00:16.8]} 55. Qf5+ {[%clk 0:00:55.8]} 55... Kh8 {[%clk 0:00:15.2]}
56. Bxe3 {[%clk 0:00:50.6]} 56... Rxe3 {[%clk 0:00:16.1]} 57. Qh5+ {[%clk
0:00:50.6]} 57... Kg8 {[%clk 0:00:16.7]} 58. Qf5 {[%clk 0:00:50.3]} 58... Re2+
{[%clk 0:00:16.7]} 59. Kh1 {[%clk 0:00:51.8]} 59... Re1+ {[%clk 0:00:13]} 60.
Kh2 {[%clk 0:00:53.2]} 60... Reg1 {[%clk 0:00:10.6]} 61. h4 {[%clk 0:00:51.9]}
61... R1g2+ {[%clk 0:00:10.7]} 62. Kh1 {[%clk 0:00:52]} 62... Rg1+ {[%clk
0:00:11.9]} 63. Kh2 {[%clk 0:00:53.2]} 63... R7g2+ {[%clk 0:00:12]} 64. Kh3
{[%clk 0:00:54.3]} 64... Rg3+ {[%clk 0:00:13.5]} 65. Kh2 {[%clk 0:00:55.6]}
65... R1g2+ {[%clk 0:00:14.6]} 66. Kh1 {[%clk 0:00:57]} 66... Rg1+ {[%clk
0:00:14.9]} 67. Kh2 {[%clk 0:00:58.4]} 67... R3g2+ {[%clk 0:00:16.4]} 68. Kh3
{[%clk 0:00:59.1]} 68... Rb2 {[%clk 0:00:11.3]} 69. Qe6+ {[%clk 0:00:56.5]}
69... Kf8 {[%clk 0:00:12.4]} 70. Qe3 {[%clk 0:00:48.4]} 70... Rgb1 {[%clk
0:00:09.9]} 71. Qf4+ {[%clk 0:00:48.1]} 71... Ke7 {[%clk 0:00:10.6]} 72. Qe5+
{[%clk 0:00:49.5]} 72... Kd7 {[%clk 0:00:12]} 73. h5 {[%clk 0:00:49.4]} 73...
Rh1+ {[%clk 0:00:12]} 74. Kg3 {[%clk 0:00:48.2]} 74... Rbh2 {[%clk 0:00:12.8]}
75. Qg7+ {[%clk 0:00:46.2]} 75... Kc8 {[%clk 0:00:13.7]} 76. Qf8+ {[%clk
0:00:47.2]} 76... Kc7 {[%clk 0:00:15.2]} 77. Qe7+ {[%clk 0:00:48.4]} 77... Kb6
{[%clk 0:00:16.5]} 78. Qd8+ {[%clk 0:00:49.6]} 78... Ka6 {[%clk 0:00:17.3]} 79.
Qa8+ {[%clk 0:00:50.5]} 79... Kb6 {[%clk 0:00:18.9]} 80. Qd8+ {[%clk 0:00:50.8]}
80... Ka6 {[%clk 0:00:20.5]} 81. Qa8+ {[%clk 0:00:51.6]} 81... Kb6 {[%clk
0:00:22.1]} 82. Qd8+ {[%clk 0:00:52.4]} 82... Ka6 {[%clk 0:00:23.7]} 83. Qa8+
{[%clk 0:00:43.1]} 83... Kb6 {[%clk 0:00:23.6]} 84. Qd8+ {[%clk 0:00:39.5]}
84... Ka6 {[%clk 0:00:23.4]} 85. Qa8+ {[%clk 0:00:39.6]} 85... Kb6 {[%clk
0:00:24.3]} 86. Qd8+ {[%clk 0:00:40.4]} 1/2-1/2